bitfinex/quotes_BTCUSD_20241116
["timestamp","ask_amount","ask_price","bid_price","bid_amount"]
[1731786860174,0.0017152,91084.0,91083.0,0.132789]
[1731786860386,0.0017152,91084.0,91083.0,0.27360236]
[1731786861535,0.0017152,91084.0,91083.0,0.25060236]
[1731786861759,0.0017152,91084.0,91083.0,0.54578043]
[1731786862204,0.0017152,91084.0,91083.0,0.25060236]
[1731786862443,2e-07,91084.0,91083.0,0.27360236]
[1731786862704,0.16495752,91102.0,91101.0,0.109768]
[1731786862927,0.0017148,91114.0,91101.0,0.22142405]
[1731786863173,0.16667232,91114.0,91113.0,0.109753]
[1731786863394,0.0017148,91114.0,91113.0,0.109753]
[1731786863620,0.0017148,91114.0,91113.0,0.17105317]
[1731786864312,0.0017148,91114.0,91113.0,0.21881555]
[1731786865011,0.0017148,91114.0,91113.0,0.109753]
[1731786866840,0.0017148,91114.0,91113.0,0.20803687]
[1731786867085,0.0017148,91114.0,91113.0,0.20803779]
[1731786867302,0.0017148,91114.0,91113.0,0.15525633]
[1731786868407,0.0017148,91114.0,91113.0,0.17753347]
[1731786868643,0.16107232,91128.0,91127.0,0.109736]
[1731786868883,0.0504,91133.0,91127.0,0.109736]
[1731786868884,0.0484,91133.0,91132.0,0.10973]
[1731786873315,0.0814,91139.0,91138.0,0.109723]
[1731786874719,0.0884,91139.0,91138.0,0.109723]
[1731786874957,0.1368,91139.0,91138.0,0.109723]
[1731786876072,0.1348,91139.0,91138.0,0.109723]
[1731786878258,0.1298,91139.0,91138.0,0.109723]
[1731786879129,0.128629,91139.0,91138.0,0.109723]
[1731786881116,0.133629,91139.0,91138.0,0.109723]
[1731786882212,0.24469155,91139.0,91138.0,0.109723]
[1731786883413,0.0829,91132.0,91112.0,0.1123615]
[1731786883646,0.0899,91132.0,91131.0,0.109731]
[1731786883857,0.0879,91132.0,91131.0,0.109731]
[1731786885395,0.19696255,91132.0,91131.0,0.109731]
[1731786885825,0.19896255,91132.0,91131.0,0.109731]
[1731786889531,0.19896255,91132.0,91131.0,0.1105875]
[1731786891751,0.119739,91125.0,91124.0,0.02143577]
[1731786891994,0.119739,91125.0,91099.0,0.10977]
[1731786891995,0.005,91100.0,91099.0,0.16495752]
[1731786892235,0.00774431,91100.0,91099.0,0.16495752]
[1731786892480,0.005,91096.0,91089.0,0.16495752]
[1731786892915,0.005,91090.0,91084.0,0.16495752]
[1731786893143,0.005,91090.0,91088.0,0.109783]
[1731786893364,0.005,91090.0,91087.0,0.109784]
[1731786893583,0.005,91090.0,91088.0,0.109783]
[1731786893842,0.005,91090.0,91089.0,0.109782]
[1731786895194,0.005,91090.0,91084.0,0.219577]
[1731786895419,0.005,91090.0,91089.0,0.109782]
[1731786897063,0.005,91090.0,91084.0,0.219577]
[1731786897512,0.005,91090.0,91089.0,0.109782]
[1731786899289,0.005,91090.0,91080.0,0.0008571]
[1731786899290,0.005,91090.0,91081.0,0.219584]
[1731786899506,0.005,91090.0,91085.0,0.109786]
[1731786899725,0.005,91090.0,91081.0,0.219584]
[1731786900168,0.005,91090.0,91088.0,0.109783]
[1731786900443,0.005,91090.0,91089.0,0.109782]
[1731786900892,0.005,91090.0,91086.0,0.109785]
[1731786901104,0.002,91089.0,91088.0,0.109783]
[1731786901772,0.002,91089.0,91085.0,0.219575]
[1731786901773,0.002,91086.0,91085.0,0.109787]
[1731786906044,0.002,91084.0,91081.0,0.109792]
[1731786906275,0.0479,91084.0,91080.0,0.0008571]
[1731786906512,0.0754,91083.0,91080.0,0.0008571]
[1731786907453,0.0754,91083.0,91082.0,0.109791]
[1731786907883,0.0754,91083.0,91080.0,0.0008571]
[1731786908094,0.0754,91083.0,91082.0,0.109791]
[1731786908987,0.0754,91083.0,91080.0,0.0008571]
[1731786909200,0.0804,91083.0,91080.0,0.0008571]
[1731786909888,0.005,91081.0,91080.0,0.0008571]
[1731786910120,0.11406255,91081.0,91080.0,0.0008571]
[1731786910822,0.23085455,91081.0,91080.0,0.0008571]
[1731786911974,0.27675455,91081.0,91080.0,0.0008571]
[1731786913138,0.27675455,91081.0,91068.0,0.11786439]
[1731786913139,0.109801,91074.0,91068.0,0.11786439]
[1731786913366,0.002,91069.0,91068.0,0.11786439]
[1731786913597,0.002,91069.0,91068.0,0.114197]
[1731786913833,0.0479,91068.0,91059.0,0.0671221]
[1731786914058,0.002,91062.0,91061.0,0.109815]
[1731786914549,0.005,91060.0,91056.0,0.109822]
[1731786914784,0.007,91060.0,91053.0,0.08880992]
[1731786915020,0.007,91060.0,91059.0,0.109818]
[1731786915232,0.109822,91056.0,91050.0,0.109829]
[1731786915477,0.005,91053.0,91049.0,0.16495752]
[1731786915773,0.002,91050.0,91048.0,0.109832]
[1731786916002,0.002,91050.0,91040.0,0.219682]
[1731786916003,0.005,91048.0,91046.0,0.109833]
[1731786916235,0.005,91048.0,91036.0,0.01804051]
[1731786916236,0.11680839,91048.0,91045.0,0.109835]
[1731786917152,0.11680839,91048.0,91041.0,0.219679]
[1731786917385,0.11680839,91048.0,91046.0,0.109833]
[1731786917839,0.11680839,91048.0,91044.0,0.109836]
[1731786918901,0.11680839,91048.0,91041.0,0.219679]
[1731786919121,0.19420839,91048.0,91040.0,0.043905]
[1731786919344,0.35074039,91048.0,91040.0,0.043905]
[1731786919582,0.34799455,91048.0,91040.0,0.043905]
[1731786919803,0.34799455,91048.0,91042.0,0.109839]
[1731786920053,0.34799455,91048.0,91039.0,0.1106995]
[1731786920269,0.23616255,91048.0,91045.0,0.109835]
[1731786920731,0.34874048,91048.0,91039.0,0.0008565]
[1731786920977,0.34599455,91048.0,91039.0,0.1106985]
[1731786921217,0.34799455,91048.0,91039.0,0.0008565]
[1731786921440,0.35299455,91048.0,91039.0,0.0008565]
[1731786923810,0.35299455,91048.0,91039.0,0.1106985]
[1731786924721,0.35299455,91048.0,91040.0,0.109841]
[1731786925184,0.35299455,91048.0,91039.0,0.1106985]
[1731786926110,0.35299455,91048.0,91039.0,0.0008565]
[1731786926338,0.002,91037.0,91036.0,0.1107026]
[1731786926570,0.002,91037.0,91036.0,0.109846]
[1731786927026,0.002,91032.0,91031.0,0.109852]
[1731786927523,0.002,91032.0,91031.0,0.15376]
[1731786928425,0.002,91032.0,91031.0,0.109852]
[1731786928666,0.005,91038.0,91037.0,0.109845]
[1731786930053,0.002,91036.0,91035.0,0.109847]
[1731786930747,0.005,91038.0,91037.0,0.109845]
[1731786931240,0.005,91038.0,91034.0,0.219698]
[1731786931466,0.005,91038.0,91037.0,0.109845]
[1731786933084,0.004535,91038.0,91034.0,0.26340887]
[1731786933308,0.004535,91038.0,91037.0,0.109845]
[1731786933794,0.006535,91038.0,91037.0,0.109845]
[1731786934937,0.004535,91038.0,91037.0,0.109845]
[1731786935363,0.006535,91038.0,91037.0,0.109845]
[1731786935541,0.004535,91038.0,91037.0,0.109845]
[1731786935789,0.004535,91038.0,91035.0,0.219695]
[1731786936034,0.004535,91038.0,91037.0,0.109845]
[1731786936251,0.007,91039.0,91036.0,0.219693]
[1731786936465,0.004535,91038.0,91037.0,0.109845]
[1731786938202,0.004535,91038.0,91036.0,0.219693]
[1731786938430,0.004535,91038.0,91037.0,0.109845]
[1731786941213,0.00728114,91038.0,91037.0,0.109845]
[1731786941863,0.004535,91038.0,91037.0,0.109845]
[1731786942093,0.11859755,91039.0,91038.0,0.109844]
[1731786942564,0.12059755,91039.0,91038.0,0.10974193]
[1731786944282,0.006535,91039.0,91038.0,0.10974193]
[1731786945236,0.004535,91037.0,91032.0,0.0008575]
[1731786945494,0.002,91036.0,91033.0,0.219698]
[1731786945724,0.002,91036.0,91035.0,0.109847]
[1731786946171,0.11106255,91036.0,91032.0,0.0008575]
[1731786946432,0.198185,91033.0,91032.0,0.0008575]
[1731786946689,0.20014404,91033.0,91032.0,0.0008575]
[1731786950585,0.30999404,91033.0,91032.0,0.0008575]
[1731786950833,0.30724755,91033.0,91032.0,0.0008575]
[1731786960602,0.11559755,91033.0,91032.0,0.1107085]
[1731786960889,0.11559755,91033.0,91032.0,0.0008575]
[1731786961109,0.22544755,91033.0,91032.0,0.0008575]
[1731786961365,0.22344755,91033.0,91032.0,0.0008575]
[1731786961579,0.22544755,91033.0,91032.0,0.0008575]
[1731786962031,0.22344755,91033.0,91032.0,0.0008575]
[1731786962249,0.22544755,91033.0,91032.0,0.0008575]
[1731786963217,0.35264755,91033.0,91032.0,0.0008575]
[1731786980974,0.35264755,91033.0,91032.0,0.0054575]
[1731786989673,0.004535,91019.0,91018.0,0.49455952]
[1731786989906,0.11359755,91019.0,91018.0,0.49455952]
[1731786990127,0.11359755,91019.0,91018.0,0.329602]
[1731786991226,0.004535,91019.0,91018.0,0.329602]
[1731786995195,0.004535,91019.0,91016.0,0.0738281]
[1731786995418,0.002,91022.0,91016.0,0.0738281]
[1731786995419,0.004535,91017.0,91016.0,0.1836981]
[1731786999016,0.004535,91017.0,91016.0,0.0746854]
[1731786999238,0.004535,91017.0,91016.0,0.1845554]
[1731787002684,0.004535,91017.0,91016.0,0.0746854]
[1731787002893,0.004535,91017.0,91016.0,0.1845554]
[1731787003119,0.004535,91018.0,91016.0,0.0746854]
[1731787003377,0.004535,91017.0,91016.0,0.1845554]
[1731787003596,0.004535,91018.0,91017.0,0.109869]
[1731787008632,0.004535,91018.0,91017.0,0.20861097]
[1731787008836,0.004535,91018.0,91017.0,0.109869]
[1731787010816,0.004535,91018.0,91017.0,0.1107265]
[1731787012603,0.004535,91018.0,91017.0,0.20946847]
[1731787013018,0.004535,91018.0,91017.0,0.1107265]
[1731787015013,0.004535,91018.0,91017.0,0.20946847]
[1731787015228,0.004535,91018.0,91017.0,0.1107265]
[1731787022692,0.004535,91018.0,91017.0,0.11052956]
[1731787023166,0.002,91020.0,91019.0,0.109867]
[1731787023658,0.0027467,91021.0,91020.0,0.109865]
[1731787023863,0.048915,91022.0,91021.0,0.109864]
[1731787024077,0.001715,91022.0,91021.0,0.10972027]
[1731787024736,0.001715,91022.0,91021.0,0.25737647]
[1731787024953,0.001715,91022.0,91021.0,0.21537826]
[1731787025671,0.001715,91022.0,91021.0,0.46218173]
[1731787026362,0.001715,91022.0,91021.0,0.18354837]
[1731787027061,0.001715,91022.0,91021.0,0.25737647]
[1731787027761,0.001715,91022.0,91021.0,0.29417673]
[1731787027974,0.001715,91022.0,91021.0,0.26237647]
[1731787028186,0.001715,91022.0,91021.0,0.54097946]
[1731787028447,0.001715,91022.0,91021.0,0.29417599]
[1731787028701,0.16495752,91035.0,91034.0,0.109849]
[1731787028947,0.001715,91039.0,91038.0,0.114844]
[1731787029189,0.001715,91039.0,91038.0,0.29368612]
[1731787029428,0.001715,91039.0,91038.0,0.195044]
[1731787032143,0.001715,91039.0,91038.0,0.23151804]
[1731787034512,0.001715,91039.0,91038.0,0.46480869]
[1731787034732,0.16495752,91057.0,91038.0,0.46480869]
[1731787034733,0.16495752,91057.0,91056.0,0.109822]
[1731787035184,0.0472,91067.0,91053.0,0.4475072]
[1731787035457,0.0472,91067.0,91066.0,0.1836381]
[1731787036417,0.0017144,91068.0,91067.0,0.109809]
[1731787038720,0.0017144,91068.0,91067.0,0.1836371]
[1731787038949,0.0017144,91068.0,91067.0,0.109809]
[1731787040818,0.0478,91067.0,91053.0,0.0779]
[1731787041032,0.002,91063.0,91054.0,0.0738281]
[1731787041251,0.18680787,91066.0,91061.0,0.21963]
[1731787041472,0.18680787,91066.0,91065.0,0.109811]
[1731787041701,0.075,91066.0,91065.0,0.109811]
[1731787041924,0.0478,91067.0,91066.0,0.10981]
[1731787042142,0.0017144,91068.0,91064.0,0.0738281]
[1731787042355,0.0017144,91068.0,91067.0,0.109809]
[1731787042795,0.0017144,91068.0,91067.0,0.1836371]
[1731787043009,0.0017144,91068.0,91067.0,0.109809]
[1731787044375,0.0017144,91068.0,91067.0,0.1836371]
[1731787054623,0.0017144,91068.0,91067.0,0.3403652]
[1731787054849,0.001714,91087.0,91072.0,0.658818]
[1731787055095,0.001714,91087.0,91071.0,0.005]
[1731787055096,0.001714,91087.0,91086.0,0.1836141]
[1731787056915,0.001714,91087.0,91086.0,0.20540981]
[1731787060389,0.001714,91087.0,91086.0,0.13158171]
[1731787060605,0.131214,91087.0,91084.0,0.109788]
[1731787061341,0.131214,91087.0,91080.0,0.2934141]
[1731787061563,0.002,91077.0,91068.0,0.219616]
[1731787061797,0.21885955,91077.0,91071.0,0.109804]
[1731787062019,0.00274506,91076.0,91072.0,0.109802]
[1731787062245,0.00274506,91076.0,91073.0,0.109801]
[1731787062960,0.00274506,91076.0,91068.0,0.28521793]
[1731787063182,0.002,91074.0,91068.0,0.0738281]
[1731787063405,0.002,91074.0,91069.0,0.109806]
[1731787063645,0.002,91070.0,91069.0,0.109806]
[1731787066361,0.002,91074.0,91072.0,0.109802]
[1731787067323,0.002,91073.0,91072.0,0.109802]
[1731787067564,0.002,91070.0,91069.0,0.0738281]
[1731787068038,0.002,91070.0,91069.0,0.1836341]
[1731787068545,0.0484,91070.0,91069.0,0.1836341]
[1731787070870,0.0492573,91070.0,91069.0,0.1836341]
[1731787073035,0.0472573,91070.0,91069.0,0.1836341]
[1731787076679,0.0472573,91070.0,91069.0,0.109806]
[1731787076892,0.0472573,91070.0,91069.0,0.1836341]
[1731787087104,0.0008573,91070.0,91069.0,0.1836341]
[1731787096727,0.1334573,91070.0,91068.0,0.0017142]
[1731787096939,0.00274524,91069.0,91068.0,0.0017142]
[1731787097177,0.00474524,91069.0,91068.0,0.0017142]
[1731787097408,0.11455124,91069.0,91068.0,0.0017142]
[1731787098548,0.00474524,91069.0,91068.0,0.0017142]
[1731787100981,0.11455124,91069.0,91068.0,0.0017142]
[1731787101233,0.16255124,91069.0,91068.0,0.0017142]
[1731787101735,0.05274524,91069.0,91068.0,0.0017142]
[1731787103471,0.16255124,91069.0,91068.0,0.0017142]
[1731787105773,0.15066342,91069.0,91068.0,0.0017142]
[1731787106015,0.1534087,91069.0,91068.0,0.0017142]
[1731787106690,0.1534087,91069.0,91063.0,0.109813]
[1731787106901,0.1534087,91069.0,91060.0,0.219635]
[1731787107111,0.1534087,91069.0,91062.0,0.109814]
[1731787107774,0.109808,91068.0,91062.0,0.109814]
[1731787107991,0.11255428,91067.0,91062.0,0.109814]
[1731787109646,0.0436027,91069.0,91060.0,0.219635]
[1731787109864,0.0436027,91069.0,91064.0,0.109812]
[1731787110142,0.1534097,91069.0,91063.0,0.109813]
[1731787110363,0.109808,91068.0,91063.0,0.109813]
[1731787116634,0.109809,91067.0,91063.0,0.109813]
[1731787116869,0.109809,91067.0,91063.0,0.1115272]
[1731787119867,0.109809,91067.0,91063.0,0.0017142]
[1731787120388,0.109809,91067.0,91063.0,0.1115272]
[1731787122959,0.1534097,91069.0,91063.0,0.0017142]
[1731787123191,0.1534097,91069.0,91064.0,0.109812]
[1731787123461,0.1534097,91069.0,91063.0,0.0017142]
[1731787123705,0.1534097,91069.0,91065.0,0.109811]
[1731787124627,0.0436027,91069.0,91067.0,0.1836361]
[1731787124851,0.04085742,91069.0,91067.0,0.1836361]
[1731787125585,0.04085742,91069.0,91068.0,0.109808]
[1731787128800,0.04171482,91069.0,91068.0,0.109808]
[1731787129450,0.04171482,91069.0,91067.0,0.0738281]
[1731787129675,0.04171482,91069.0,91068.0,0.109808]
[1731787133569,0.04446006,91069.0,91068.0,0.109808]
[1731787133776,0.04171482,91069.0,91068.0,0.109808]
[1731787134472,0.04171482,91069.0,91067.0,0.1836371]
[1731787134697,0.04446007,91069.0,91068.0,0.109808]
[1731787134928,0.04171482,91069.0,91068.0,0.109808]
[1731787135567,0.04446006,91069.0,91067.0,0.0738281]
[1731787139807,0.15426706,91069.0,91067.0,0.0738281]
[1731787140471,0.04446006,91069.0,91067.0,0.0738281]
[1731787140892,0.04446006,91069.0,91068.0,0.109808]
[1731787141118,0.04171482,91069.0,91067.0,0.0738281]
[1731787141561,0.04171482,91069.0,91067.0,0.1836361]
[1731787142652,0.109808,91068.0,91067.0,0.0738281]
[1731787142875,0.04446007,91069.0,91067.0,0.0738281]
[1731787143521,0.109808,91068.0,91067.0,0.0738281]
[1731787144479,0.04446007,91069.0,91067.0,0.0738281]
[1731787144714,0.109808,91068.0,91067.0,0.0738281]
[1731787146125,0.109808,91068.0,91064.0,0.0017148]
[1731787146934,0.109811,91065.0,91064.0,0.0017148]
[1731787148776,0.109809,91067.0,91064.0,0.0017148]
[1731787149965,0.219618,91068.0,91064.0,0.0017148]
[1731787150185,0.329428,91067.0,91064.0,0.0017148]
[1731787150404,0.109811,91065.0,91064.0,0.0017148]
[1731787151577,0.04171482,91069.0,91064.0,0.0017148]
[1731787151578,0.219616,91068.0,91064.0,0.0017148]
[1731787151812,0.22236127,91068.0,91064.0,0.0017148]
[1731787152065,0.109811,91065.0,91064.0,0.0017148]
[1731787155757,0.219616,91068.0,91064.0,0.0017148]
[1731787155972,0.109811,91065.0,91064.0,0.0017148]
[1731787156461,0.219616,91068.0,91059.0,0.0738281]
[1731787156684,0.109812,91065.0,91060.0,0.109816]
[1731787157587,0.109809,91067.0,91059.0,0.2934641]
[1731787157816,0.10981,91067.0,91061.0,0.109815]
[1731787158477,0.10981,91066.0,91061.0,0.109815]
[1731787158695,0.10981,91066.0,91062.0,0.109814]
[1731787160094,0.109809,91067.0,91062.0,0.109814]
[1731787162059,0.109809,91067.0,91063.0,0.109813]
[1731787164395,0.109809,91067.0,91065.0,0.0738281]
[1731787164813,0.1106664,91067.0,91065.0,0.0738281]
[1731787165033,0.0008574,91067.0,91065.0,0.0738281]
[1731787165266,0.0008574,91067.0,91064.0,0.109812]
[1731787165501,0.0008574,91067.0,91064.0,0.0738281]
[1731787165711,0.0008574,91067.0,91065.0,0.10981]
[1731787166140,0.0008574,91067.0,91064.0,0.2934511]
[1731787166359,0.0008574,91067.0,91066.0,0.10981]
[1731787167037,0.0008574,91067.0,91064.0,0.1836401]
[1731787167263,0.0008574,91067.0,91065.0,0.109811]
[1731787167698,0.0008574,91067.0,91064.0,0.0738281]
[1731787167916,0.0008574,91067.0,91066.0,0.10981]
[1731787170566,0.0008574,91067.0,91064.0,0.1836401]
[1731787171728,0.0008574,91067.0,91065.0,0.109811]
[1731787174042,0.0008574,91067.0,91064.0,0.0738281]
[1731787174281,0.0008574,91067.0,91066.0,0.10981]
[1731787186187,0.0008574,91067.0,91066.0,0.22602861]
[1731787187357,0.0008574,91067.0,91066.0,0.47262508]
[1731787187583,0.16495752,91080.0,91079.0,0.1836221]
[1731787188059,0.0468,91085.0,91084.0,0.109788]
[1731787188344,0.15586255,91085.0,91084.0,0.1836161]
[1731787188797,0.185281,91090.0,91084.0,0.1836161]
[1731787188798,0.0468,91090.0,91086.0,0.109786]
[1731787199049,0.1236,91097.0,91086.0,0.109786]
[1731787199726,0.0481,91097.0,91086.0,0.109786]
[1731787202229,0.00274443,91096.0,91086.0,0.109786]
[1731787202461,0.00274443,91096.0,91084.0,0.18326482]
[1731787202715,0.00274443,91096.0,91086.0,0.1836141]
[1731787204331,0.048114,91087.0,91086.0,0.109786]
[1731787204802,0.048114,91087.0,91082.0,0.21958]
[1731787205033,0.048114,91087.0,91083.0,0.219579]
[1731787205263,0.048114,91087.0,91085.0,0.109787]
[1731787206483,0.048114,91087.0,91083.0,0.109789]
[1731787206750,0.048114,91087.0,91084.0,0.109788]
[1731787207668,0.048114,91087.0,91083.0,0.109789]
[1731787207928,0.048114,91087.0,91081.0,0.13186297]
[1731787208157,0.048114,91087.0,91077.0,0.0738281]
[1731787208158,0.10906255,91086.0,91077.0,0.0738281]
[1731787208387,0.219579,91083.0,91070.0,0.109804]
[1731787208612,0.0464,91081.0,91070.0,0.109804]
[1731787208842,0.10906255,91080.0,91077.0,0.0738281]
[1731787209098,0.0464,91086.0,91085.0,0.109787]
[1731787209371,0.16495752,91086.0,91085.0,0.0738281]
[1731787209618,0.0464,91092.0,91086.0,0.109786]
[1731787210664,0.0773,91096.0,91086.0,0.109786]
[1731787210854,0.0464,91098.0,91086.0,0.109786]
[1731787212726,0.156172,91098.0,91086.0,0.109786]
[1731787213267,0.0464,91098.0,91086.0,0.109786]
[1731787214427,0.0464,91098.0,91086.0,0.1836141]
[1731787215808,0.04914442,91098.0,91086.0,0.1836141]
[1731787217897,0.0464,91098.0,91086.0,0.1836141]
[1731787218821,0.16495752,91100.0,91086.0,0.3119141]
[1731787219300,0.16495752,91100.0,91086.0,0.3099141]
[1731787220232,0.16495752,91100.0,91086.0,0.2614141]
[1731787220694,0.16495752,91100.0,91086.0,0.2634141]
[1731787221565,0.16495752,91100.0,91086.0,0.2614141]
[1731787222018,0.16495752,91100.0,91086.0,0.26360946]
[1731787222236,0.16495752,91100.0,91086.0,0.26560946]
[1731787222446,0.16495752,91100.0,91086.0,0.2634141]
[1731787226728,0.16167152,91100.0,91099.0,0.10977]
[1731787227190,0.0491442,91105.0,91103.0,0.109765]
[1731787227442,0.15546255,91105.0,91101.0,0.109767]
[1731787227663,0.00274416,91104.0,91101.0,0.109767]
[1731787227887,0.00274416,91104.0,91102.0,0.109766]
[1731787228806,0.00274416,91104.0,91097.0,0.219544]
[1731787229058,0.00274416,91104.0,91103.0,0.109765]
[1731787229280,0.15546255,91105.0,91104.0,0.109764]
[1731787229511,0.0464,91105.0,91104.0,0.109764]
[1731787230008,0.001715,91110.0,91102.0,0.219532]
[1731787230274,0.047315,91110.0,91109.0,0.1835861]
[1731787232860,0.001715,91110.0,91109.0,0.1835861]
[1731787235354,0.001715,91110.0,91103.0,0.219531]
[1731787235582,0.001715,91110.0,91096.0,0.224546]
[1731787235583,0.109761,91107.0,91102.0,0.109766]
[1731787235809,0.109761,91107.0,91093.0,0.09848365]
[1731787235810,0.19330659,91106.0,91094.0,0.109776]
[1731787236033,0.109766,91103.0,91093.0,0.02148449]
[1731787236252,0.265126,91105.0,91095.0,0.219551]
[1731787236253,0.00274418,91104.0,91095.0,0.219551]
[1731787236523,0.11180673,91104.0,91095.0,0.219551]
[1731787236745,0.11180673,91104.0,91097.0,0.0738281]
[1731787236746,0.10869898,91104.0,91097.0,0.0738281]
[1731787236963,0.10869898,91104.0,91101.0,0.109767]
[1731787237391,0.10869898,91104.0,91102.0,0.109766]
[1731787238474,0.10869898,91104.0,91100.0,0.0008571]
[1731787238710,0.10869898,91104.0,91101.0,0.109768]
[1731787238924,0.10869898,91104.0,91102.0,0.109766]
[1731787240920,0.10869898,91104.0,91103.0,0.109765]
[1731787249071,0.10869898,91104.0,91100.0,0.2203951]
[1731787249072,0.0456,91105.0,91104.0,0.109764]
[1731787251295,0.001715,91110.0,91109.0,0.109758]
[1731787251504,0.001715,91110.0,91109.0,0.1835861]
[1731787253205,0.001715,91110.0,91109.0,0.0738281]
[1731787253411,0.001715,91110.0,91100.0,0.0008571]
[1731787253412,0.0452,91109.0,91100.0,0.0008571]
[1731787253621,0.0815,91108.0,91105.0,0.109763]
[1731787253838,0.0815,91108.0,91102.0,0.219533]
[1731787254042,0.0815,91108.0,91104.0,0.219529]
[1731787254250,0.0815,91108.0,91100.0,0.0008571]
[1731787254467,0.0815,91108.0,91107.0,0.109761]
[1731787256017,0.0815,91108.0,91100.0,0.0008571]
[1731787256223,0.0815,91108.0,91103.0,0.109765]
[1731787256456,0.0452,91107.0,91103.0,0.109765]
[1731787256694,0.10906255,91106.0,91100.0,0.0008571]
[1731787256907,0.109768,91101.0,91100.0,0.0008571]
[1731787257150,0.26403055,91101.0,91100.0,0.0008571]
[1731787259557,0.35327486,91101.0,91100.0,0.0008571]
[1731787259779,0.109787,91085.0,91084.0,0.16464631]
[1731787259987,0.34314955,91085.0,91084.0,0.16464631]
[1731787260206,0.109793,91081.0,91079.0,0.03554796]
[1731787260418,0.109791,91082.0,91079.0,0.03554796]
[1731787260633,0.00274481,91083.0,91071.0,0.39197915]
[1731787260634,0.11180736,91083.0,91071.0,0.39197915]
[1731787260862,0.11180736,91083.0,91076.0,0.109797]
[1731787261282,0.22159736,91083.0,91076.0,0.109797]
[1731787261944,0.22159736,91083.0,91078.0,0.02218939]
[1731787262426,0.109791,91082.0,91078.0,0.02218939]
[1731787262866,0.109792,91081.0,91078.0,0.02218939]
[1731787263077,0.11180736,91083.0,91071.0,0.32863367]
[1731787263325,0.11180736,91083.0,91072.0,0.219606]
[1731787263586,0.11180736,91083.0,91078.0,0.109795]
[1731787263587,0.10906255,91083.0,91078.0,0.109795]
[1731787263816,0.10906255,91083.0,91078.0,0.1090002]
[1731787264481,0.10906255,91083.0,91078.0,0.109795]
[1731787267822,0.10906255,91083.0,91076.0,0.2934241]
[1731787268037,0.10906255,91083.0,91071.0,0.03519857]
[1731787268038,0.10906255,91083.0,91082.0,0.109791]
[1731787268990,1.21078072,91150.0,91081.0,0.0738281]
[1731787268991,0.1243,91091.0,91081.0,0.0738281]
[1731787269221,0.10906255,91090.0,91088.0,0.0738281]
[1731787271412,0.1243,91091.0,91090.0,0.109781]
[1731787271669,0.0492,91091.0,91090.0,0.109781]
[1731787272885,0.1305,91097.0,91089.0,0.219565]
[1731787273139,0.10906255,91094.0,91088.0,0.1457584]
[1731787273383,0.109785,91087.0,91081.0,0.109791]
[1731787273610,0.1305,91086.0,91078.0,0.24248157]
[1731787273839,0.1305,91086.0,91080.0,0.03488427]
[1731787274101,0.1305,91086.0,91085.0,0.109787]
[1731787275068,0.0493,91086.0,91085.0,0.109787]
[1731787275524,0.240278,91093.0,91087.0,0.109784]
[1731787275755,0.23956255,91093.0,91089.0,0.219565]
[1731787275990,0.15836255,91093.0,91092.0,0.1836071]
[1731787276479,0.15836255,91093.0,91092.0,0.0738281]
[1731787276716,0.15836255,91093.0,91087.0,0.2933971]
[1731787277214,0.15836255,91093.0,91089.0,0.109782]
[1731787277703,0.15836255,91093.0,91090.0,0.109781]
[1731787277936,0.15836255,91093.0,91091.0,0.109779]
[1731787278161,0.15836255,91093.0,91088.0,0.219567]
[1731787278162,0.15836255,91093.0,91090.0,0.109781]
[1731787278388,0.15836255,91093.0,91091.0,0.10978]
[1731787279141,0.15836255,91093.0,91090.0,0.10978]
[1731787280578,0.15836255,91093.0,91092.0,0.109779]
[1731787282021,0.0493,91093.0,91092.0,0.1836071]
[1731787282250,0.0474144,91101.0,91097.0,0.109772]
[1731787282523,0.10906255,91100.0,91093.0,0.219555]
[1731787282743,0.10906255,91100.0,91092.0,0.2933861]
[1731787282996,0.10906255,91100.0,91096.0,0.109773]
[1731787283226,0.0027444,91099.0,91094.0,0.109776]
[1731787283453,0.10906255,91098.0,91092.0,0.329336]
[1731787283682,0.00274446,91097.0,91092.0,0.329336]
[1731787283926,0.10906255,91096.0,91092.0,0.329336]
[1731787284388,0.10906255,91096.0,91093.0,0.109777]
[1731787284840,0.111807,91096.0,91093.0,0.109777]
[1731787286532,0.111807,91096.0,91092.0,0.109778]
[1731787286814,0.111807,91096.0,91085.0,0.0738281]
[1731787287274,0.00274446,91095.0,91091.0,0.10978]
[1731787287503,0.11180701,91095.0,91092.0,0.109779]
[1731787288005,0.11180701,91095.0,91091.0,0.109779]
[1731787288249,0.11180701,91095.0,91089.0,0.08163804]
[1731787288487,0.11180701,91095.0,91085.0,0.0738281]
[1731787288718,0.11180701,91095.0,91091.0,0.109779]
[1731787288985,0.0457,91094.0,91092.0,0.109778]
[1731787289209,0.0457,91094.0,91090.0,0.0738281]
[1731787289440,0.0474144,91101.0,91100.0,0.109769]
[1731787289671,0.0017144,91101.0,91100.0,0.1835971]
[1731787294897,0.0017144,91101.0,91100.0,0.109769]
[1731787298508,0.0017144,91101.0,91098.0,0.109771]
[1731787298730,0.0017144,91101.0,91100.0,0.109769]
[1731787299182,0.0017144,91101.0,91100.0,0.100887]
[1731787299895,0.0017144,91101.0,91095.0,0.03590397]
[1731787299896,0.11077695,91101.0,91095.0,0.03590397]
[1731787300121,0.0454,91095.0,91085.0,0.329362]
[1731787300336,0.0454,91095.0,91083.0,0.219578]
[1731787300337,0.11252046,91094.0,91088.0,0.109783]
[1731787301024,0.00274446,91094.0,91087.0,0.21957]
[1731787301258,0.00274446,91094.0,91090.0,0.10978]
[1731787301479,0.109779,91092.0,91085.0,0.0355261]
[1731787301695,0.19098,91091.0,91085.0,0.1453131]
[1731787302183,0.109781,91090.0,91085.0,0.109787]
[1731787302395,0.19098,91091.0,91085.0,0.109787]
[1731787302841,0.19098,91091.0,91086.0,0.109786]
[1731787303271,0.19098,91091.0,91086.0,0.10913089]
[1731787303711,0.19098,91091.0,91084.0,0.0017152]
[1731787303712,0.0812,91091.0,91087.0,0.109784]
[1731787304165,0.11180709,91090.0,91084.0,0.0017152]
[1731787304385,0.109787,91085.0,91084.0,0.0017152]
[1731787304608,0.21884955,91085.0,91084.0,0.0017152]